Service area,Service sub division,TVBC Service,Expense type,Detailed expense type,TVBC account code,Date Paid,Transaction Reference,Nett Value,Supplier Name
Environmental & Regulatory,Street Cleansing (not chargeable to Highways),Environmental,Transport Related Expenditure,Direct Transport Costs,Repair Materials,03/09/2015,158882,-1431.94,Johnston Sweepers Ltd
Cultural & Related,Recreation & Sport,Estates and Economic Development ,Premises related Expenditure,Energy Costs,Gas,03/09/2015,161233,-1153.54,Total Gas & Power Ltd
Cultural & Related,Recreation & Sport,Estates and Economic Development ,Premises related Expenditure,Energy Costs,Gas,03/09/2015,161234,-938.83,Total Gas & Power Ltd
Cultural & Related,Recreation & Sport,Estates and Economic Development ,Premises related Expenditure,Energy Costs,Gas,03/09/2015,161235,-933.17,Total Gas & Power Ltd
Cultural & Related,Recreation & Sport,Estates and Economic Development ,Premises related Expenditure,Energy Costs,Gas,03/09/2015,161232,-731.85,Total Gas & Power Ltd
Planning & Development,Community Development,Community and Leisure ,Supplies & Services,Grants & Subscriptions,Grants,09/09/2015,163680,500,Alamein Community Association
Planning & Development,Community Development,Community and Leisure ,Supplies & Services,Grants & Subscriptions,Grants,09/09/2015,163681,500,Andover Trees United
Planning & Development,Community Development,Community and Leisure ,Supplies & Services,Grants & Subscriptions,Grants,23/09/2015,164933,500,Romsey Choral Society
Planning & Development,Economic Development,Estates and Economic Development ,Supplies & Services,Grants & Subscriptions,Grants,02/09/2015,163130,500,Berkeley Dog Beds Ltd
Planning & Development,Economic Development,Estates and Economic Development ,Supplies & Services,Grants & Subscriptions,Grants,02/09/2015,163134,500,Claire And Peppercorn Ltd
Planning & Development,Community Development,Community and Leisure ,Supplies & Services,Grants & Subscriptions,Grants,17/09/2015,164437,500,Chilbolton Village Hall
Planning & Development,Economic Development,Estates and Economic Development ,Supplies & Services,Grants & Subscriptions,Grants,02/09/2015,163135,500,S J Design
Planning & Development,Economic Development,Estates and Economic Development ,Supplies & Services,Grants & Subscriptions,Grants,16/09/2015,164330,500,Green Buttercup Cic
Planning & Development,Economic Development,Estates and Economic Development ,Supplies & Services,Grants & Subscriptions,Grants,23/09/2015,164931,500,Personal data - Data Protection Act 1998
Cultural & Related,Culture & Heritage,Estates and Economic Development ,Premises related Expenditure,Repairs Alterations & Maintenance of Buildings,Planned Maintenance - Non Est,17/09/2015,164465,432,Gillett & Johnston (Croydon) Ltd
Cultural & Related,Recreation & Sport,Estates and Economic Development ,Premises related Expenditure,Energy Costs,Gas,10/09/2015,163295,433.54,Total Gas & Power Ltd
Planning & Development,Building Control,Planning & Building,Supplies & Services,Services,Professional Fees,24/09/2015,163035,438.03,Barron & Partners
Central Services to the Public,Elections,Legal & Democratic,Supplies & Services,"Printing, Stationery & General Office Expenses",External Printing,17/09/2015,164444,438.41,Financial Data Management Plc
Environmental & Regulatory,Waste management,Environmental,Employees,Indirect Employee Expenses,Agency Staff - Waged Posts,17/09/2015,164005,439.12,Active Staff Ltd
Cultural & Related,Open Spaces,Community and Leisure ,Supplies & Services,Miscellaneous Expenses,Promotions / Special Events,16/09/2015,164298,440,Newsquest Hampshire
Central Services to the Public,Elections,Legal & Democratic,Supplies & Services,"Printing, Stationery & General Office Expenses",Postage Costs,17/09/2015,164442,443.5,Financial Data Management Plc
Central Services to the Public,Management & Support Services,Chief Executive's,Supplies & Services,Communications & Computing,Computer Hardware,24/09/2015,164156,446,Ricoh Uk Ltd
Environmental & Regulatory,Regulatory Services,Legal & Democratic,Supplies & Services,"Printing, Stationery & General Office Expenses",Stationery,10/09/2015,163701,446.9,Newauto Ltd T/A Mogo (Uk)
Central Services to the Public,Management & Support Services,Estates and Economic Development ,Supplies & Services,"Equipment, Furniture & Materials",Equipment Lease Rentals,03/09/2015,163224,455,Woosh Washrooms
"Highways, Roads & Transport",Highways and roads - maintenance,Plan Pol & Transport,Supplies & Services,Services,Training Courses,17/09/2015,164418,550,Institute Of Highway Engineers
Planning & Development,Development Control,Planning & Building,Supplies & Services,Services,Project Consultancy - Policy,17/09/2015,162616,458.35,Eastleigh Borough Council
Central Services to the Public,Management & Support Services,Environmental,Transport Related Expenditure,Direct Transport Costs,Workshop Consumables,17/09/2015,164165,149.38,M D Services
Central Services to the Public,Management & Support Services,Environmental,Transport Related Expenditure,Direct Transport Costs,Repair Materials,17/09/2015,164165,298.57,M D Services
Central Services to the Public,Management & Support Services,Environmental,Supplies & Services,"Equipment, Furniture & Materials",Purchase Tools,17/09/2015,164165,11.42,M D Services
Environmental & Regulatory,Street Cleansing (not chargeable to Highways),Environmental,Transport Related Expenditure,Direct Transport Costs,Repair Materials,17/09/2015,163788,462.92,Johnston Sweepers Ltd
Central Services to the Public,Management & Support Services,Finance,Supplies & Services,"Printing, Stationery & General Office Expenses",Stationery,17/09/2015,164039,468,Bulpitt Print Ltd
Central Services to the Public,Management & Support Services,Legal & Democratic,Supplies & Services,Services,Training Courses,17/09/2015,163999,470,Veale Wasbrough Vizard
Environmental & Regulatory,Waste management,Environmental,Employees,Indirect Employee Expenses,Agency Staff - Waged Posts,24/09/2015,165007,471.25,Employment Partners Ltd
Central Services to the Public,Management & Support Services,Housing and Environmental Health ,Supplies & Services,Services,Training Courses,24/09/2015,164781,480,Chartered Institute Of Housing
Central Services to the Public,Management & Support Services,Housing and Environmental Health ,Supplies & Services,Services,Training Courses,24/09/2015,164782,480,Chartered Institute Of Housing
Central Services to the Public,Management & Support Services,Chief Executive's,Supplies & Services,Services,Training Courses,24/09/2015,162512,240,Locality
Planning & Development,Planning Policy,Plan Pol & Transport,Supplies & Services,Services,Training Courses,24/09/2015,162512,240,Locality
Central Services to the Public,Elections,Legal & Democratic,Supplies & Services,"Printing, Stationery & General Office Expenses",Postage Costs,03/09/2015,163107,493.21,Royal Mail
Central Services to the Public,Management & Support Services,Estates and Economic Development ,Third Party Payments,Other Establishments,Contract Catering,10/09/2015,163532,495.85,Edwards And Ward Ltd
External Trading Accounts,Industrial Estates,Estates and Economic Development ,Supplies & Services,Communications & Computing,Land Line Telephone Charges,03/09/2015,162776,27.42,Virgin Media Payments Ltd
Cultural & Related,Culture & Heritage,Estates and Economic Development ,Supplies & Services,Communications & Computing,Land Line Telephone Charges,03/09/2015,162776,39.41,Virgin Media Payments Ltd
Cultural & Related,Culture & Heritage,Estates and Economic Development ,Supplies & Services,Communications & Computing,Land Line Telephone Charges,03/09/2015,162776,39.14,Virgin Media Payments Ltd
Central Services to the Public,Management & Support Services,IT,Supplies & Services,Communications & Computing,Communication Links,03/09/2015,162776,26,Virgin Media Payments Ltd
Central Services to the Public,Management & Support Services,IT,Supplies & Services,Communications & Computing,Communication Links,03/09/2015,162776,67,Virgin Media Payments Ltd
Cultural & Related,Recreation & Sport,Community and Leisure ,Supplies & Services,Communications & Computing,Land Line Telephone Charges,03/09/2015,162776,26,Virgin Media Payments Ltd
Cultural & Related,Recreation & Sport,Community and Leisure ,Supplies & Services,Communications & Computing,Land Line Telephone Charges,03/09/2015,162776,13.56,Virgin Media Payments Ltd
Cultural & Related,Recreation & Sport,Community and Leisure ,Supplies & Services,Communications & Computing,Land Line Telephone Charges,03/09/2015,162776,13,Virgin Media Payments Ltd
Cultural & Related,Culture & Heritage,Community and Leisure ,Supplies & Services,Communications & Computing,Communication Links,03/09/2015,162776,52.14,Virgin Media Payments Ltd
"Highways, Roads & Transport",Parking Services,Plan Pol & Transport,Supplies & Services,Communications & Computing,Alarm Lines,03/09/2015,162776,37,Virgin Media Payments Ltd
Central Services to the Public,Management & Support Services,Environmental,Supplies & Services,Communications & Computing,Land Line Telephone Charges,03/09/2015,162776,67.48,Virgin Media Payments Ltd
Central Services to the Public,Emergency Planning,Corporate & Democratic,Supplies & Services,Communications & Computing,Land Line Telephone Charges,03/09/2015,162776,91,Virgin Media Payments Ltd
Cultural & Related,Tourism,Estates and Economic Development ,Supplies & Services,Grants & Subscriptions,Subscriptions,24/09/2015,164742,500,Tourism South East
Cultural & Related,Open Spaces,Community and Leisure ,Premises related Expenditure,Grounds Maintenance Costs,Gm - Additional Works,24/09/2015,164436,500,Evergreen Rabbit Control
Central Services to the Public,Management & Support Services,Estates and Economic Development ,Premises related Expenditure,Energy Costs,Gas,03/09/2015,162089,503.3,Total Gas & Power Ltd
Cultural & Related,Open Spaces,Community and Leisure ,Supplies & Services,"Equipment, Furniture & Materials",Purchase Equip + Materials,03/09/2015,162750,519,Streetmaster (South Wales) Ltd
Environmental & Regulatory,Waste management,Environmental,Employees,Indirect Employee Expenses,Agency Staff - Waged Posts,17/09/2015,164032,520,Employment Partners Ltd
Cultural & Related,Open Spaces,Environmental,Supplies & Services,"Equipment, Furniture & Materials",Purchase Equip + Materials,17/09/2015,163995,526.1,Spaldings (Uk) Limited
Environmental & Regulatory,Regulatory Services,Estates and Economic Development ,Supplies & Services,"Equipment, Furniture & Materials",Purchase Equip + Materials,03/09/2015,163209,527.78,Cjs Portsmouth Ltd
Environmental & Regulatory,Regulatory Services,Estates and Economic Development ,Supplies & Services,"Equipment, Furniture & Materials",Purchase Materials (Job Cost),03/09/2015,163209,5.7,Cjs Portsmouth Ltd
Cultural & Related,Culture & Heritage,Estates and Economic Development ,Premises related Expenditure,Repairs Alterations & Maintenance of Buildings,Building Maint - Non Estates,03/09/2015,163072,535.1,Basingstoke Fire Protection Ltd
External Trading Accounts,Industrial Estates,Estates and Economic Development ,Supplies & Services,Miscellaneous Expenses,Waste Collection,17/09/2015,164138,535.5,Basingstoke Skip Hire & Sthrn Waste Mgt Ltd
Environmental & Regulatory,Waste management,Environmental,Transport Related Expenditure,Direct Transport Costs,Repair Materials,03/09/2015,162477,178.82,Dennis Eagle Ltd
Central Services to the Public,Management & Support Services,Environmental,Transport Related Expenditure,Direct Transport Costs,Repair Materials,03/09/2015,162477,357.4,Dennis Eagle Ltd
Environmental & Regulatory,Regulatory Services,Housing and Environmental Health ,Supplies & Services,Grants and subscriptions,Capital Grants,10/09/2015,163277,650,Kjm Replacement Windows Ltd
Cultural & Related,Culture & Heritage,Community and Leisure ,Supplies & Services,"Equipment, Furniture & Materials",Purchase Equip + Materials,17/09/2015,164147,550,Wake'S Decorating Ltd
Cultural & Related,Culture & Heritage,Estates and Economic Development ,Premises related Expenditure,Repairs Alterations & Maintenance of Buildings,Planned Maintenance - Non Est,24/09/2015,164917,160,A C Wallbridge & Co Ltd
Central Services to the Public,Management & Support Services,Estates and Economic Development ,Premises related Expenditure,Repairs Alterations & Maintenance of Buildings,Planned Maintenance - Non Est,24/09/2015,164917,180,A C Wallbridge & Co Ltd
Central Services to the Public,Management & Support Services,Estates and Economic Development ,Supplies & Services,"Equipment, Furniture & Materials",Purchase Materials (Job Cost),24/09/2015,164753,565,A J Wilsons
Cultural & Related,Recreation & Sport,Community and Leisure ,Premises related Expenditure,Repairs Alterations & Maintenance of Buildings,Planned Maintenance - Non Est,24/09/2015,164917,225,A C Wallbridge & Co Ltd
Central Services to the Public,Management & Support Services,Estates and Economic Development ,Supplies & Services,"Printing, Stationery & General Office Expenses",Stationery,10/09/2015,163119,588.23,Banner Business Services Ltd
Central Services to the Public,Management & Support Services,Environmental,Transport Related Expenditure,Direct Transport Costs,Repair Materials,24/09/2015,164758,568.92,Dennis Eagle Ltd
Cultural & Related,Culture & Heritage,Community and Leisure ,Supplies & Services,Miscellaneous Expenses,Booking Of Acts,10/09/2015,163552,685.34,Personal data - Data Protection Act 1998
Environmental & Regulatory,Waste management,Environmental,Employees,Indirect Employee Expenses,Agency Staff - Waged Posts,24/09/2015,165008,581.75,Employment Partners Ltd
Planning & Development,Development Control,Planning & Building,Supplies & Services,Miscellaneous Expenses,Planning Appeal Costs,16/09/2015,164306,700,Nursling & Rownhams Community Association
Housing Services,Homelessness,Housing and Environmental Health ,Supplies & Services,Miscellaneous Expenses,Emergency Accommodation in respect of Homelessness Duties,17/09/2015,164189,700,Cabin B & B
Planning & Development,Development Control,Planning & Building,Supplies & Services,"Printing, Stationery & General Office Expenses",Photocopying Costs,24/09/2015,164728,590,Ricoh Uk Ltd
Cultural & Related,Recreation & Sport,Estates and Economic Development ,Premises related Expenditure,Energy Costs,Gas,03/09/2015,163074,593.94,Total Gas & Power Ltd
Central Services to the Public,Management & Support Services,Estates and Economic Development ,Supplies & Services,"Equipment, Furniture & Materials",Purchase Materials (Job Cost),03/09/2015,163100,595,A J Wilsons
Cultural & Related,Open Spaces,Environmental,Supplies & Services,"Equipment, Furniture & Materials",Purchase Equip + Materials,17/09/2015,163207,6.2,Roland Security Llp
Environmental & Regulatory,Street Cleansing (not chargeable to Highways),Environmental,Supplies & Services,"Equipment, Furniture & Materials",Purchase Equip + Materials,17/09/2015,163207,12.9,Roland Security Llp
Environmental & Regulatory,Waste management,Environmental,Supplies & Services,"Equipment, Furniture & Materials",Purchase Equip + Materials,17/09/2015,163207,580,Roland Security Llp
Planning & Development,Planning Policy,Plan Pol & Transport,Supplies & Services,Services,Project Consultancy - Policy,03/09/2015,162778,600,Hampshire County Council
Central Services to the Public,Management & Support Services,Finance,Supplies & Services,"Printing, Stationery & General Office Expenses",Postage Costs,17/09/2015,163797,608.33,Whistl South West Ltd
Cultural & Related,Open Spaces,Environmental,Employees,Indirect Employee Expenses,Agency Staff - Waged Posts,03/09/2015,163040,610.37,365 Supply Ltd
Environmental & Regulatory,Community Development,Community and Leisure ,Supplies & Services,Miscellaneous Expenses,Promotions / Special Events,17/09/2015,163970,620.6,The Studio
Planning & Development,Development Control,Planning & Building,Supplies & Services,Services,Project Consultancy - Policy,24/09/2015,165006,750,Cornerstone Barristers
Housing Services,Housing Benefits ,Revenues,Supplies & Services,Services,External Training Consultants,09/09/2015,162734,312.5,Airey Consultancy Services Ltd
Central Services to the Public,Local Tax Collection,Revenues,Supplies & Services,Services,External Training Consultants,09/09/2015,162734,312.5,Airey Consultancy Services Ltd
Central Services to the Public,Management & Support Services,Estates and Economic Development ,Premises related Expenditure,Water Services,Water And Sewerage Charges,03/09/2015,163247,757.16,Southern Water
Environmental & Regulatory,Street Cleansing (not chargeable to Highways),Environmental,Transport Related Expenditure,Direct Transport Costs,External Garages,17/09/2015,163787,360,Adams Morey Ltd
Environmental & Regulatory,Street Cleansing (not chargeable to Highways),Environmental,Transport Related Expenditure,Direct Transport Costs,Repair Materials,17/09/2015,163787,280.53,Adams Morey Ltd
Planning & Development,Development Control,Planning & Building,Employees,Indirect Employee Expenses,Temporary Staff,17/09/2015,163981,642.6,Matchtech Group Uk Ltd
Planning & Development,Development Control,Planning & Building,Employees,Indirect Employee Expenses,Temporary Staff,17/09/2015,164168,642.6,Matchtech Group Uk Ltd
Planning & Development,Development Control,Planning & Building,Employees,Indirect Employee Expenses,Temporary Staff,17/09/2015,164169,642.6,Matchtech Group Uk Ltd
Planning & Development,Development Control,Planning & Building,Employees,Indirect Employee Expenses,Temporary Staff,24/09/2015,164913,642.6,Matchtech Group Uk Ltd
Central Services to the Public,Local Tax Collection,Revenues,Supplies & Services,Communications & Computing,Software Maintenance,24/09/2015,164800,650,Orbit Uk
Cultural & Related,Culture & Heritage,Community and Leisure ,Supplies & Services,Miscellaneous Expenses,Promotions / Special Events,24/09/2015,164908,665,Hampshire Media Limited
Planning & Development,Community Development,Community and Leisure ,Supplies & Services,Grants & Subscriptions,Grants,09/09/2015,163678,800,Ashlawn Gardens Social Club
Cultural & Related,Culture & Heritage,Community and Leisure ,Supplies & Services,Services,Professional Advice,03/09/2015,163229,800,Greene Shoots
Cultural & Related,Open Spaces,Environmental,Employees,Indirect Employee Expenses,Agency Staff - Waged Posts,03/09/2015,163041,674.14,365 Supply Ltd
Cultural & Related,Open Spaces,Environmental,Supplies & Services,Services,Training Courses,24/09/2015,164423,195,Nationwide Training Limited
Environmental & Regulatory,Street Cleansing (not chargeable to Highways),Environmental,Supplies & Services,Services,Training Courses,24/09/2015,164423,195,Nationwide Training Limited
Environmental & Regulatory,Waste management,Environmental,Supplies & Services,Services,Training Courses,24/09/2015,164423,195,Nationwide Training Limited
Central Services to the Public,Management & Support Services,Environmental,Supplies & Services,Services,Training Courses,24/09/2015,164423,65,Nationwide Training Limited
Central Services to the Public,Management & Support Services,Environmental,Supplies & Services,Services,Training Courses,24/09/2015,164423,38.25,Nationwide Training Limited
Central Services to the Public,Management & Support Services,Estates and Economic Development ,Supplies & Services,Services,Training Courses,24/09/2015,164750,700,Evac Chair International Ltd
Central Services to the Public,Local Tax Collection,Revenues,Supplies & Services,"Printing, Stationery & General Office Expenses",Postage Costs,17/09/2015,164323,40.83,Royal Mail
Central Services to the Public,Local Tax Collection,Revenues,Supplies & Services,"Printing, Stationery & General Office Expenses",Postage Costs,17/09/2015,164323,402.81,Royal Mail
Housing Services,Housing Benefits ,Revenues,Supplies & Services,"Printing, Stationery & General Office Expenses",Postage Costs,17/09/2015,164323,130.83,Royal Mail
Central Services to the Public,Local Tax Collection,Revenues,Supplies & Services,"Printing, Stationery & General Office Expenses",Postage Costs,17/09/2015,164323,130.83,Royal Mail
Central Services to the Public,Management & Support Services,IT,Supplies & Services,Communications & Computing,Land Line Telephone Charges,10/09/2015,163549,706.69,Virgin Media Payments Ltd
Cultural & Related,Recreation & Sport,Estates and Economic Development ,Premises related Expenditure,Energy Costs,Gas,03/09/2015,161239,711.59,Total Gas & Power Ltd
Central Services to the Public,Management & Support Services,IT,Supplies & Services,Communications & Computing,Hardware Maintenance,03/09/2015,162753,724.79,Intrinsic Technology
Cultural & Related,Culture & Heritage,Community and Leisure ,Supplies & Services,Services,Tutors,09/09/2015,163231,870,Personal data - Data Protection Act 1998
Environmental & Regulatory,Waste management,Environmental,Transport Related Expenditure,Direct Transport Costs,Repair Materials,17/09/2015,163275,72.13,Dennis Eagle Ltd
Environmental & Regulatory,Waste management,Environmental,Transport Related Expenditure,Direct Transport Costs,Repair Materials,17/09/2015,163275,241.98,Dennis Eagle Ltd
Central Services to the Public,Management & Support Services,Environmental,Transport Related Expenditure,Direct Transport Costs,Repair Materials,17/09/2015,163275,415.93,Dennis Eagle Ltd
Cultural & Related,Recreation & Sport,Estates and Economic Development ,Premises related Expenditure,Energy Costs,Gas,03/09/2015,161246,731.85,Total Gas & Power Ltd
Environmental & Regulatory,Regulatory Services,Housing and Environmental Health ,Supplies & Services,Grants and subscriptions,Capital Grants,10/09/2015,163822,880,Epw Construction
Central Services to the Public,Management & Support Services,IT,Supplies & Services,Communications & Computing,Hardware Maintenance,03/09/2015,163228,740.62,Quadrant Security Group Ltd
Central Services to the Public,Management & Support Services,IT,Supplies & Services,Communications & Computing,Hardware Maintenance,24/09/2015,164784,740.62,Quadrant Security Group Ltd
Central Services to the Public,Management & Support Services,Environmental,Supplies & Services,"Clothes, Uniforms & Laundry",Clothing + Uniforms,24/09/2015,164740,745.8,Arco Ltd
Central Services,Corporate & Democratic Core,Corporate & Democratic,Supplies & Services,Services,Professional Advice,17/09/2015,163686,750,Dc Commerical Solicitors
Cultural & Related,Open Spaces,Environmental,Employees,Indirect Employee Expenses,Agency Staff - Waged Posts,03/09/2015,163071,674.14,365 Supply Ltd
Environmental & Regulatory,Waste management,Environmental,Supplies & Services,Miscellaneous Expenses,Recycling Campaign,03/09/2015,163071,81.99,365 Supply Ltd
Cultural & Related,Culture & Heritage,Community and Leisure ,Supplies & Services,Miscellaneous Expenses,Bank Charges,30/09/2015,165414,759,Yes Pay International Ltd
Planning & Development,Development Control,Planning & Building,Supplies & Services,Services,Project Consultancy - Policy,24/09/2015,165005,945,Cornerstone Barristers
Housing Services,"Housing strategy, advice and enabling",Housing and Environmental Health ,Employees,Indirect Employee Expenses,Temporary Staff,17/09/2015,163984,790,Abatec Ltd
Planning & Development,Development Control,Planning & Building,Supplies & Services,Services,Project Consultancy - Policy,24/09/2015,164909,795,Reading Agricultural Consultants Ltd
Housing Services,"Housing strategy, advice and enabling",Housing and Environmental Health ,Employees,Indirect Employee Expenses,Temporary Staff,03/09/2015,161894,800,Abatec Ltd
Cultural & Related,Culture & Heritage,Community and Leisure ,Supplies & Services,Miscellaneous Expenses,Booking Of Acts,03/09/2015,163234,800,Oddsocks Communications Ltd
Planning & Development,Planning Policy,Plan Pol & Transport,Supplies & Services,"Printing, Stationery & General Office Expenses",Written Media,03/09/2015,162770,810,Haymarket Media Group
Cultural & Related,Culture & Heritage,Community and Leisure ,Premises related Expenditure,Repairs Alterations & Maintenance of Buildings,Planned Maintenance - Non Est,17/09/2015,164473,821.16,Basingstoke Fire Protection Ltd
Central Services to the Public,Management & Support Services,Estates and Economic Development ,Supplies & Services,"Equipment, Furniture & Materials",Equipment Hire,10/09/2015,163484,825,Crown Water & Coffee
Cultural & Related,Open Spaces,Environmental,Transport Related Expenditure,Direct Transport Costs,Repair Materials,17/09/2015,163124,828.53,R Hunt (Agricultural Engineers) Ltd
Cultural & Related,Recreation & Sport,Community and Leisure ,Supplies & Services,Grants and subscriptions,Capital Grants,23/09/2015,164935,1000,Romsey Amateur Operatic & Dramatics Society
Planning & Development,Community Development,Community and Leisure ,Supplies & Services,Grants & Subscriptions,Grants,09/09/2015,163679,1000,Andover Hockey Club
Central Services to the Public,Management & Support Services,Legal & Democratic,Employees,Indirect Employee Expenses,Agency Staff - Waged Posts,03/09/2015,162514,850,Venn Group Ltd
Central Services to the Public,Management & Support Services,Estates and Economic Development ,Supplies & Services,Communications & Computing,Telephone Tracking System,17/09/2015,163689,60,Ctrack Uk Limited
Environmental & Regulatory,Regulatory Services,Estates and Economic Development ,Supplies & Services,Communications & Computing,Telephone Tracking System,17/09/2015,163689,20,Ctrack Uk Limited
Environmental & Regulatory,Regulatory Services,Housing and Environmental Health ,Supplies & Services,Miscellaneous Expenses,Kennel fees,17/09/2015,163977,850,Anton Vets Ltd
Cultural & Related,Open Spaces,Environmental,Supplies & Services,Communications & Computing,Telephone Tracking System,17/09/2015,163689,280,Ctrack Uk Limited
Environmental & Regulatory,Street Cleansing (not chargeable to Highways),Environmental,Supplies & Services,Communications & Computing,Telephone Tracking System,17/09/2015,163689,230,Ctrack Uk Limited
Environmental & Regulatory,Waste management,Environmental,Supplies & Services,Communications & Computing,Telephone Tracking System,17/09/2015,163689,210,Ctrack Uk Limited
Environmental & Regulatory,Waste management,Environmental,Supplies & Services,Communications & Computing,Telephone Tracking System,17/09/2015,163689,20,Ctrack Uk Limited
Central Services to the Public,Management & Support Services,Environmental,Supplies & Services,Communications & Computing,Telephone Tracking System,17/09/2015,163689,30,Ctrack Uk Limited
Cultural & Related,Recreation & Sport,Community and Leisure ,Premises related Expenditure,Water Services,Water And Sewerage Charges,17/09/2015,164011,1028.37,Southern Water
Planning & Development,Economic Development,Estates and Economic Development ,Supplies & Services,Services,Professional Fees,17/09/2015,164460,871,Aecom Professional Services Llp
Planning & Development,Development Control,Planning & Building,Supplies & Services,Miscellaneous Expenses,Planning Appeal Costs,24/09/2015,163284,900,Wyg Environment Planning Transport Ltd
Central Services to the Public,Management & Support Services,Estates and Economic Development ,Third Party Payments,Other Establishments,Private Contractors,10/09/2015,163809,913.7,Grip Potential Ltd
Environmental & Regulatory,Street Cleansing (not chargeable to Highways),Environmental,Supplies & Services,Miscellaneous Expenses,Hazardous / Fly Tipped Waste,10/09/2015,163494,925,Bkp Waste & Recycling Ltd
External Trading Accounts,Industrial Estates,Estates and Economic Development ,Premises related Expenditure,Rents,Rents,17/09/2015,164047,1111.54,Carter Jonas Service Company
Central Services to the Public,Management & Support Services,Finance,Supplies & Services,"Printing, Stationery & General Office Expenses",Postage Costs,17/09/2015,163279,937.31,Whistl South West Ltd
Environmental & Regulatory,Regulatory Services,Housing and Environmental Health ,Supplies & Services,Grants and subscriptions,Capital Grants,03/09/2015,162762,1140,Andover Glass Works Ltd
Environmental & Regulatory,Waste management,Environmental,Transport Related Expenditure,Direct Transport Costs,External Garages,17/09/2015,164026,969.5,Rd Avery
Central Services,Corporate & Democratic Core,Corporate & Democratic,Supplies & Services,Communications & Computing,Computer Software,03/09/2015,161177,975,Advanced Business Solutions
"Highways, Roads & Transport",Parking Services,Plan Pol & Transport,Premises related Expenditure,Energy Costs,Electricity,17/09/2015,163982,1023.08,Southern Electric
Central Services to the Public,Management & Support Services,Finance,Supplies & Services,"Printing, Stationery & General Office Expenses",Postage Costs,03/09/2015,162748,1025.5,Whistl South West Ltd
Central Services to the Public,Management & Support Services,Estates and Economic Development ,Premises related Expenditure,Water Services,Water And Sewerage Charges,03/09/2015,163246,1233.84,Southern Water
Cultural & Related,Recreation & Sport,Estates and Economic Development ,Premises related Expenditure,Energy Costs,Gas,03/09/2015,162673,1031.32,Total Gas & Power Ltd
Cultural & Related,Recreation & Sport,Estates and Economic Development ,Premises related Expenditure,Energy Costs,Gas,03/09/2015,163075,1031.78,Total Gas & Power Ltd
Environmental & Regulatory,Waste management,Environmental,Employees,Indirect Employee Expenses,Agency Staff - Waged Posts,24/09/2015,165001,1036.75,Employment Partners Ltd
Central Services to the Public,Management & Support Services,Finance,Supplies & Services,"Printing, Stationery & General Office Expenses",Postage Costs,24/09/2015,164411,1047.1,Whistl South West Ltd
Cultural & Related,Culture & Heritage,Community and Leisure ,Supplies & Services,Miscellaneous Expenses,Booking Of Acts,24/09/2015,164760,1066.27,London Classic Theatre Company
Central Services to the Public,Management & Support Services,Housing and Environmental Health ,Supplies & Services,Grants & Subscriptions,Subscriptions,10/09/2015,163516,1095,Hqn Ltd
"Highways, Roads & Transport",Parking Services,Plan Pol & Transport,Supplies & Services,"Printing, Stationery & General Office Expenses",External Printing,10/09/2015,161178,1115.1,Paperwork (Uk) Ltd
Cultural & Related,Open Spaces,Environmental,Transport Related Expenditure,Direct Transport Costs,Repair Materials,17/09/2015,163972,1150,H L Smith Transmissions Ltd
Environmental & Regulatory,Waste management,Environmental,Employees,Indirect Employee Expenses,Agency Staff - Waged Posts,17/09/2015,164273,1164.56,Abacus Employment Services Ltd
Cultural & Related,Recreation & Sport,Estates and Economic Development ,Premises related Expenditure,Energy Costs,Gas,03/09/2015,162674,1165.91,Total Gas & Power Ltd
Cultural & Related,Culture & Heritage,Community and Leisure ,Supplies & Services,Catering,Non-Contract Catering,10/09/2015,163557,1168.82,Carlsberg Uk Ltd
Environmental & Regulatory,Waste management,Environmental,Employees,Indirect Employee Expenses,Agency Staff - Waged Posts,17/09/2015,164033,1178.13,Employment Partners Ltd
Central Services to the Public,Management & Support Services,Legal & Democratic,Employees,Indirect Employee Expenses,Agency Staff - Waged Posts,24/09/2015,163545,1180,Venn Group Ltd
Cultural & Related,Culture & Heritage,Estates and Economic Development ,Third Party Payments,Private contractors,Main Contractor Costs,10/09/2015,163099,1193,Westlake Asphalt Company Limited
Cultural & Related,Culture & Heritage,Community and Leisure ,Supplies & Services,Miscellaneous Expenses,Booking Of Acts,10/09/2015,163553,1435.34,And Finally Ltd
"Highways, Roads & Transport",Parking Services,Plan Pol & Transport,Supplies & Services,"Printing, Stationery & General Office Expenses",External Printing,10/09/2015,160926,1239,Paperwork (Uk) Ltd
Planning & Development,Development Control,Planning & Building,Supplies & Services,"Printing, Stationery & General Office Expenses",Stationery,10/09/2015,163239,955.43,Banner Business Services Ltd
Planning & Development,Development Control,Planning & Building,Supplies & Services,"Printing, Stationery & General Office Expenses",Print Consumables,10/09/2015,163239,320.25,Banner Business Services Ltd
Central Services to the Public,Local Tax Collection,Revenues,Supplies & Services,Communications & Computing,Software Maintenance,17/09/2015,164416,130,Northgate Public Services Uk Ltd
Central Services to the Public,Local Tax Collection,Revenues,Supplies & Services,Communications & Computing,Software Maintenance,17/09/2015,164416,520,Northgate Public Services Uk Ltd
Housing Services,Housing Benefits ,Revenues,Supplies & Services,Communications & Computing,Software Maintenance,17/09/2015,164416,325,Northgate Public Services Uk Ltd
Central Services to the Public,Local Tax Collection,Revenues,Supplies & Services,Communications & Computing,Software Maintenance,17/09/2015,164416,325,Northgate Public Services Uk Ltd
Planning & Development,Development Control,Planning & Building,Employees,Indirect Employee Expenses,Temporary Staff,10/09/2015,163283,1306,Oyster Partnership
Central Services to the Public,Management & Support Services,Legal & Democratic,Employees,Indirect Employee Expenses,Agency Staff - Waged Posts,24/09/2015,164721,1320,Venn Group Ltd
Housing Services,Homelessness,Housing and Environmental Health ,Transport Related Expenditure,Contract Hire and Operating Leases,Officer lease cars,24/09/2015,165047,1604.61,Volkswagen Group Leasing
Central Services to the Public,Management & Support Services,Estates and Economic Development ,Supplies & Services,Miscellaneous Expenses,Waste Collection,03/09/2015,163199,1356.8,Clearwater 2010 Ltd
Environmental & Regulatory,Waste management,Environmental,Employees,Indirect Employee Expenses,Agency Staff - Waged Posts,17/09/2015,164275,1381.69,Abacus Employment Services Ltd
Central Services to the Public,Local Tax Collection,Revenues,Supplies & Services,Miscellaneous Expenses,All Pay Fees,10/09/2015,163537,1637.88,Allpay Limited
Environmental & Regulatory,Regulatory Services,Housing and Environmental Health ,Supplies & Services,Grants and subscriptions,Capital Grants,24/09/2015,165033,1664,Prism Medical Uk
Environmental & Regulatory,Regulatory Services,Housing and Environmental Health ,Supplies & Services,Grants and subscriptions,Capital Grants,24/09/2015,165032,1695,Bentley Mobility Services
Cultural & Related,Open Spaces,Environmental,Supplies & Services,"Equipment, Furniture & Materials",Purchase Equip + Materials,17/09/2015,163052,1414.8,R Hunt (Agricultural Engineers) Ltd
Central Services to the Public,Housing Benefits ,Revenues,Supplies & Services,Communications & Computing,Software Maintenance,17/09/2015,164415,1416.7,Northgate Public Services Uk Ltd
Environmental & Regulatory,Waste management,Environmental,Employees,Indirect Employee Expenses,Agency Staff - Waged Posts,17/09/2015,164004,1465.5,Abacus Employment Services Ltd
Environmental & Regulatory,Regulatory Services,Estates and Economic Development ,Premises related Expenditure,Water Services,Water And Sewerage Charges,17/09/2015,164013,1760.12,Southern Water
External Trading Accounts,Industrial Estates,Estates and Economic Development ,Supplies & Services,Services,Professional Fees,03/09/2015,163198,1495,Oakleaf Surveying Ltd
Central Services to the Public,Management & Support Services,Legal & Democratic,Employees,Indirect Employee Expenses,Agency Staff - Waged Posts,03/09/2015,161909,1520,Venn Group Ltd
External Trading Accounts,Industrial Estates,Estates and Economic Development ,Premises related Expenditure,Repairs Alterations & Maintenance of Buildings,Planned Maintenance - Non Est,24/09/2015,164751,1542.03,Rentokil Initial Uk Ltd
Environmental & Regulatory,Regulatory Services,Housing and Environmental Health ,Supplies & Services,Grants and subscriptions,Capital Grants,24/09/2015,165035,1862,Epw Construction
"Highways, Roads & Transport",Public Transport,Plan Pol & Transport,Third Party Payments,Transport Operators in Respect of Concessionary Fares,Voluntary Orgs Reimbursement,10/09/2015,163296,1869,Andover Neighbourcare
Environmental & Regulatory,"Cemetery, Cremation and Mortuary Services",Community and Leisure ,Supplies & Services,Miscellaneous Expenses,National Assist Act Burials,02/09/2015,163132,1890,A H Cheater Ltd Funeral Directors
Planning & Development,Development Control,Planning & Building,Supplies & Services,Services,Project Consultancy - Policy,24/09/2015,164744,1590,Southern Land Surveys (Uk) Ltd
Central Services to the Public,Management & Support Services,Estates and Economic Development ,Premises related Expenditure,Repairs Alterations & Maintenance of Buildings,Car Park General Repairs,17/09/2015,163483,1638.88,Designs For Lighting
Planning & Development,Development Control,Planning & Building,Employees,Indirect Employee Expenses,Temporary Staff,10/09/2015,163282,1659.6,Oyster Partnership
Central Services to the Public,Management & Support Services,Estates and Economic Development ,Third Party Payments,Other Establishments,Contract Catering,24/09/2015,164725,1667.46,Edwards And Ward Ltd
Environmental & Regulatory,Regulatory Services,Housing and Environmental Health ,Supplies & Services,Miscellaneous Expenses,Kennel fees,10/09/2015,163285,1674,Newbury Lodge Kennels
Environmental & Regulatory,Waste management,Environmental,Employees,Indirect Employee Expenses,Agency Staff - Waged Posts,17/09/2015,164031,1686.75,Employment Partners Ltd
Cultural & Related,Culture & Heritage,Community and Leisure ,Premises related Expenditure,Energy Costs,Electricity,17/09/2015,164426,1394.08,Sparsholt College Hampshire
Cultural & Related,Culture & Heritage,Community and Leisure ,Premises related Expenditure,Energy Costs,Gas,17/09/2015,164426,80.99,Sparsholt College Hampshire
Cultural & Related,Culture & Heritage,Community and Leisure ,Premises related Expenditure,Water Services,Water And Sewerage Charges,17/09/2015,164426,254.34,Sparsholt College Hampshire
Environmental & Regulatory,Regulatory Services,Housing and Environmental Health ,Supplies & Services,Grants and subscriptions,Capital Grants,10/09/2015,163820,2025,Bartram Building Maintenance Services
Environmental & Regulatory,Regulatory Services,Housing and Environmental Health ,Supplies & Services,Grants and subscriptions,Capital Grants,10/09/2015,163821,2025,Bartram Building Maintenance Services
"Highways, Roads & Transport",Public Transport,Plan Pol & Transport,Third Party Payments,Transport Operators in Respect of Concessionary Fares,Voluntary Orgs Reimbursement,17/09/2015,164480,2089,Romsey Good Neighbours
Central Services,Corporate & Democratic Core,Corporate & Democratic,Supplies & Services,"Printing, Stationery & General Office Expenses",Licences / Affiliation Fees,10/09/2015,163709,1754.7,The Copyright Licensing Agency Ltd
Environmental & Regulatory,Regulatory Services,Housing and Environmental Health ,Supplies & Services,Miscellaneous Expenses,Promotions / Special Events,03/09/2015,162783,1800,The Environment Centre (Tec)
Central Services to the Public,Local Tax Collection,Revenues,Supplies & Services,Services,Professional Fees,10/09/2015,163068,170,Ross & Roberts
Cultural & Related,Open Spaces,Community and Leisure ,Supplies & Services,Miscellaneous Expenses,Vehicle insurance claims,17/09/2015,164433,2235,Zurich Insurance Company
Central Services to the Public,Management & Support Services,Estates and Economic Development ,Third Party Payments,Other Establishments,Private Contractors,24/09/2015,164920,2250,G J Roofing
Central Services to the Public,Management & Support Services,IT,Supplies & Services,Communications & Computing,Computer Software,24/09/2015,164296,1900,Deltascheme
Environmental & Regulatory,Regulatory Services,Housing and Environmental Health ,Supplies & Services,Grants and subscriptions,Capital Grants,03/09/2015,163276,2348,Epw Construction
Cultural & Related,Culture & Heritage,Community and Leisure ,Supplies & Services,Miscellaneous Expenses,Booking Of Acts,24/09/2015,164801,1970.66,Sweeney Entertainments
Cultural & Related,Recreation & Sport,Community and Leisure ,Third Party Payments,Private contractors,Main Contractor Costs,10/09/2015,160626,1977,Rocon Contractors Ltd
Cultural & Related,Recreation & Sport,Community and Leisure ,Premises related Expenditure,Grounds Maintenance Costs,Gm - Additional Works,10/09/2015,163499,1985,Fabtech Engineering Lted
Cultural & Related,Recreation & Sport,Community and Leisure ,Supplies & Services,Grants and subscriptions,Capital Grants,09/09/2015,163677,2400,Romsey Amateur Operatics & Dramatics Society
Environmental & Regulatory,Regulatory Services,Housing and Environmental Health ,Supplies & Services,Grants and subscriptions,Capital Grants,24/09/2015,165050,2475.6,Enham
Environmental & Regulatory,Community Development,Community and Leisure ,Supplies & Services,Grants & Subscriptions,Subscriptions,03/09/2015,161910,2494,Hampshire County Council
Planning & Development,Economic Development,Estates and Economic Development ,Supplies & Services,Services,Training Courses,03/09/2015,163046,2500,Perfect Bore Manufacturing Ltd
Cultural & Related,Open Spaces,Community and Leisure ,Supplies & Services,Communications & Computing,Software Maintenance,03/09/2015,161296,2100,R A Information Systems Ltd
Cultural & Related,Culture & Heritage,Community and Leisure ,Supplies & Services,Miscellaneous Expenses,Booking Of Acts,17/09/2015,164450,2136,Off The Kerb Productions
Central Services to the Public,Management & Support Services,Estates and Economic Development ,Premises related Expenditure,Water Services,Water And Sewerage Charges,03/09/2015,163267,2609.28,Southern Water
Environmental & Regulatory,Regulatory Services,Housing and Environmental Health ,Supplies & Services,Grants and subscriptions,Capital Grants,10/09/2015,163819,2613.79,S & J Building Services (Uk) Ltd
Central Services to the Public,Management & Support Services,Environmental,Transport Related Expenditure,Direct Transport Costs,Diesel,17/09/2015,163055,2184.25,Wp Group Limited
Environmental & Regulatory,Waste management,Environmental,Employees,Indirect Employee Expenses,Agency Staff - Waged Posts,17/09/2015,164277,2194.9,Abacus Employment Services Ltd
Environmental & Regulatory,Regulatory Services,Housing and Environmental Health ,Supplies & Services,Grants and subscriptions,Capital Grants,24/09/2015,165034,2638,Epw Construction
Central Services to the Public,Management & Support Services,IT,Supplies & Services,Communications & Computing,Computer Software,17/09/2015,164148,2200,Getmapping Plc
Central Services to the Public,Management & Support Services,Environmental,Transport Related Expenditure,Direct Transport Costs,Diesel,24/09/2015,164723,2211,Wp Group Limited
Environmental & Regulatory,Waste management,Environmental,Employees,Indirect Employee Expenses,Agency Staff - Waged Posts,17/09/2015,164417,2333.39,365 Supply Ltd
Environmental & Regulatory,Waste management,Environmental,Employees,Indirect Employee Expenses,Agency Staff - Waged Posts,17/09/2015,164274,2411.44,Abacus Employment Services Ltd
Planning & Development,Economic Development,Estates and Economic Development ,Supplies & Services,Grants & Subscriptions,Grants,03/09/2015,163263,2443.8,Heartflood Ltd
Central Services to the Public,Management & Support Services,Environmental,Transport Related Expenditure,Direct Transport Costs,Diesel,17/09/2015,163512,2494.02,Wp Group Limited
Planning & Development,Economic Development,Estates and Economic Development ,Supplies & Services,Miscellaneous Expenses,Promotions / Special Events,10/09/2015,150156,3000,Skill Quest Trust Ltd (In Liquidation)
Planning & Development,Economic Development,Estates and Economic Development ,Supplies & Services,Services,Professional Fees,24/09/2015,164461,2500,Crossways Development Solutions Ltd
Planning & Development,Planning Policy,Plan Pol & Transport,Supplies & Services,Services,Project Consultancy - Policy,03/09/2015,162747,2500,Ashdown Site Investigation Ltd
Environmental & Regulatory,Regulatory Services,Housing and Environmental Health ,Supplies & Services,Grants and subscriptions,Capital Grants,03/09/2015,163278,3000,P M Plumbing & Carpentry
Central Services to the Public,Local Tax Collection,Revenues,Supplies & Services,"Printing, Stationery & General Office Expenses",Postage Costs,10/09/2015,163542,250.1,Royal Mail
Central Services to the Public,Local Tax Collection,Revenues,Supplies & Services,"Printing, Stationery & General Office Expenses",Postage Costs,10/09/2015,163542,750.31,Royal Mail
Housing Services,Housing Benefits ,Revenues,Supplies & Services,"Printing, Stationery & General Office Expenses",Postage Costs,10/09/2015,163542,750.31,Royal Mail
Central Services to the Public,Local Tax Collection,Revenues,Supplies & Services,"Printing, Stationery & General Office Expenses",Postage Costs,10/09/2015,163542,750.31,Royal Mail
Planning & Development,Planning Policy,Plan Pol & Transport,Employees,Indirect Employee Expenses,Temporary Staff,16/09/2015,163818,3042.4,T P Marsh
Environmental & Regulatory,Regulatory Services,Housing and Environmental Health ,Supplies & Services,Grants and subscriptions,Capital Grants,24/09/2015,165031,3050.59,Aster Property
Environmental & Regulatory,Street Cleansing (not chargeable to Highways),Environmental,Supplies & Services,Miscellaneous Expenses,Waste Disposal,03/09/2015,163070,3062.42,Hampshire County Council
Environmental & Regulatory,Regulatory Services,Housing and Environmental Health ,Supplies & Services,Grants and subscriptions,Capital Grants,10/09/2015,163817,3110.79,Nhp (Romsey) Ltd
Environmental & Regulatory,Waste management,Environmental,Employees,Indirect Employee Expenses,Agency Staff - Waged Posts,17/09/2015,164034,2610.62,365 Supply Ltd
Environmental & Regulatory,Regulatory Services,Housing and Environmental Health ,Supplies & Services,Grants and subscriptions,Capital Grants,03/09/2015,163251,3138.18,S & J Building Services (Uk) Ltd
Environmental & Regulatory,Waste management,Environmental,Employees,Indirect Employee Expenses,Agency Staff - Waged Posts,17/09/2015,164006,2652.76,365 Supply Ltd
Central services to the public,"General Grants, Bequests and Donations",Housing and Environmental Health ,Supplies & Services,Grants and subscriptions,Capital Grants,16/09/2015,164329,3208,West Tytherley Village Fund
"Highways, Roads & Transport",Highways and roads - maintenance,Plan Pol & Transport,Premises related Expenditure,Repairs Alterations & Maintenance of Buildings,Highways Repairs,10/09/2015,159601,2744,Midland Signs (Leicester) Ltd
Cultural & Related,Culture & Heritage,Community and Leisure ,Supplies & Services,Miscellaneous Expenses,Booking Of Acts,24/09/2015,164727,2805.66,J Ure
Environmental & Regulatory,Regulatory Services,Housing and Environmental Health ,Supplies & Services,Grants and subscriptions,Capital Grants,03/09/2015,163274,3459.05,Prism Medical Uk
Environmental & Regulatory,Waste management,Environmental,Employees,Indirect Employee Expenses,Agency Staff - Waged Posts,17/09/2015,164035,2965.08,365 Supply Ltd
Central Services to the Public,Management & Support Services,Environmental,Transport Related Expenditure,Direct Transport Costs,Diesel,17/09/2015,163054,3046.59,Wp Group Limited
Cultural & Related,Recreation & Sport,Community and Leisure ,Premises related Expenditure,Grounds Maintenance Costs,Gm - Additional Works,10/09/2015,156049,3111.41,Strongbond Painting Specialists Ltd
Environmental & Regulatory,Waste management,Environmental,Employees,Indirect Employee Expenses,Agency Staff - Waged Posts,17/09/2015,164325,3216.94,Abacus Employment Services Ltd
Environmental & Regulatory,Waste management,Environmental,Employees,Indirect Employee Expenses,Agency Staff - Waged Posts,17/09/2015,164451,3340.66,365 Supply Ltd
Central Services to the Public,Management & Support Services,Environmental,Transport Related Expenditure,Direct Transport Costs,Diesel,24/09/2015,164722,3443.85,Wp Group Limited
Planning & Development,Community Development,Community and Leisure ,Supplies & Services,Grants & Subscriptions,Grants,10/09/2015,163804,4430.77,Thruxton War Memorial Hall
Central Services to the Public,Management & Support Services,Legal & Democratic,Transport Related Expenditure,Contract Hire and Operating Leases,Officer lease cars,17/09/2015,164427,4549.21,Arnold Clark Finance Ltd
Central Services to the Public,Management & Support Services,Environmental,Transport Related Expenditure,Direct Transport Costs,Diesel,17/09/2015,164019,3579.24,Wp Group Limited
Central Services to the Public,Management & Support Services,Environmental,Transport Related Expenditure,Direct Transport Costs,Red Derv,17/09/2015,164019,257.35,Wp Group Limited
Central Services to the Public,Management & Support Services,Environmental,Transport Related Expenditure,Direct Transport Costs,Diesel,17/09/2015,163994,3571.2,Wp Group Limited
Central Services to the Public,Management & Support Services,Environmental,Transport Related Expenditure,Direct Transport Costs,Red Derv,17/09/2015,163994,428.63,Wp Group Limited
Environmental & Regulatory,Community Development,Community and Leisure ,Supplies & Services,Miscellaneous Expenses,Promotions / Special Events,30/09/2015,164798,5000,Andover Mind
External Trading Accounts,Industrial Estates,Estates and Economic Development ,Premises related Expenditure,Rents,Rents,17/09/2015,164046,5000,Carter Jonas Service Company
Cultural & Related,Recreation & Sport,Community and Leisure ,Supplies & Services,Grants and subscriptions,Capital Grants,17/09/2015,164434,5000,Chilworth Village Hall Management Committee
Environmental & Regulatory,Community Development,Community and Leisure ,Supplies & Services,Miscellaneous Expenses,Promotions / Special Events,17/09/2015,164439,5000,Romsey Community School
Planning & Development,Economic Development,Estates and Economic Development ,Supplies & Services,Services,Training Courses,17/09/2015,163048,5000,Shenton Business Group
Cultural & Related,Recreation & Sport,Community and Leisure ,Supplies & Services,Miscellaneous Expenses,Promotions / Special Events,24/09/2015,163546,5125,Hampshire County Council
Central Services to the Public,Local Land Charges,Legal & Democratic,Supplies & Services,Miscellaneous Expenses,Land Charges Fees,10/09/2015,163281,5167.5,Hampshire County Council
Environmental & Regulatory,Waste management,Environmental,Supplies & Services,"Equipment, Furniture & Materials",Purchase Equip + Materials,24/09/2015,164733,4728.8,Fcc Recycling (Uk) Ltd
Central Services to the Public,Management & Support Services,Environmental,Transport Related Expenditure,Direct Transport Costs,Diesel,17/09/2015,163513,4889.19,Wp Group Limited
"Highways, Roads & Transport",Parking Services,Plan Pol & Transport,Supplies & Services,Services,Professional Fees,10/09/2015,163521,4965.13,Keyline Chartered Security Ltd
Planning & Development,Community Development,Community and Leisure ,Supplies & Services,Grants & Subscriptions,Grants,17/09/2015,164438,6072,Andover Neighbourcare
Planning & Development,Planning Policy,Plan Pol & Transport,Supplies & Services,Grants & Subscriptions,Environmental Initiative Grant,24/09/2015,164803,5181,Hampshire County Council
Environmental & Regulatory,Waste management,Environmental,Supplies & Services,Miscellaneous Expenses,Recycling Bank Emptying,24/09/2015,164732,5301.13,Fcc Recycling (Uk) Ltd
Environmental & Regulatory,Street Cleansing (not chargeable to Highways),Environmental,Transport Related Expenditure,Direct Transport Costs,Repair Materials,24/09/2015,162736,3636.66,King Highway Products Ltd
Environmental & Regulatory,Street Cleansing (not chargeable to Highways),Environmental,Supplies & Services,"Equipment, Furniture & Materials",Purchase Equip + Materials,24/09/2015,162736,1818.33,King Highway Products Ltd
Cultural & Related,Recreation & Sport,Community and Leisure ,Supplies & Services,Grants and subscriptions,Capital Grants,17/09/2015,164435,6747.64,Braishfield Village Hall Management Committee
Central Services to the Public,Management & Support Services,Estates and Economic Development ,Premises related Expenditure,Repairs Alterations & Maintenance of Buildings,Building Maint - Non Estates,10/09/2015,163502,5791.2,Btu Installation & Maintenance Ltd
Environmental & Regulatory,Street Cleansing (not chargeable to Highways),Environmental,Supplies & Services,"Equipment, Furniture & Materials",Purchase Equip + Materials,10/09/2015,162737,6364,King Highway Products Ltd
Central Services to the Public,Local Tax Collection,Revenues,Supplies & Services,Communications & Computing,Software Maintenance,10/09/2015,163530,638.81,Northgate Public Services Uk Ltd
Central Services to the Public,Local Tax Collection,Revenues,Supplies & Services,Communications & Computing,Software Maintenance,10/09/2015,163530,2555.23,Northgate Public Services Uk Ltd
Housing Services,Housing Benefits ,Revenues,Supplies & Services,Communications & Computing,Software Maintenance,10/09/2015,163530,1597.02,Northgate Public Services Uk Ltd
Central Services to the Public,Local Tax Collection,Revenues,Supplies & Services,Communications & Computing,Software Maintenance,10/09/2015,163530,1597.02,Northgate Public Services Uk Ltd
Central Services to the Public,Management & Support Services,Plan Pol & Transport,Supplies & Services,"Equipment, Furniture & Materials",Purchase Equip + Materials,17/09/2015,164154,6536.65,Colas Ltd
Environmental & Regulatory,Regulatory Services,Housing and Environmental Health ,Transport Related Expenditure,Direct Transport Costs,Tyres,17/09/2015,164030,114.76,Ats Euromaster Limited
Cultural & Related,Open Spaces,Environmental,Transport Related Expenditure,Direct Transport Costs,Tyres,17/09/2015,164030,362.56,Ats Euromaster Limited
Environmental & Regulatory,Street Cleansing (not chargeable to Highways),Environmental,Transport Related Expenditure,Direct Transport Costs,Tyres,17/09/2015,164030,1168.56,Ats Euromaster Limited
Environmental & Regulatory,Waste management,Environmental,Transport Related Expenditure,Direct Transport Costs,Tyres,17/09/2015,164030,4025.04,Ats Euromaster Limited
Environmental & Regulatory,Waste management,Environmental,Transport Related Expenditure,Direct Transport Costs,Tyres,17/09/2015,164030,944.23,Ats Euromaster Limited
Central Services to the Public,Management & Support Services,Estates and Economic Development ,Third Party Payments,Other Establishments,Private Contractors,10/09/2015,163814,7390,Globetech Europe Ltd
Planning & Development,Development Control,Planning & Building,Supplies & Services,Miscellaneous Expenses,Planning Appeal Costs,03/09/2015,163039,7604.26,Pro Vision Planning And Design
Environmental & Regulatory,Regulatory Services,Estates and Economic Development ,Premises related Expenditure,Cleaning and domestic supplies,Contract Cleaning - Non Estates,24/09/2015,164420,2616.39,Friends Life Company Ltd
"Highways, Roads & Transport",Parking Services,Plan Pol & Transport,Supplies & Services,Services,Professional Fees,24/09/2015,164420,6727.86,Friends Life Company Ltd
Cultural & Related,Culture & Heritage,Community and Leisure ,Supplies & Services,Services,Project Consultancy - Policy,03/09/2015,163270,10000,Personal data - Data Protection Act 1998
Planning & Development,Planning Policy,Plan Pol & Transport,Supplies & Services,Services,Project Consultancy - Policy,10/09/2015,163567,9743.46,Hampshire County Council
Cultural & Related,Open Spaces,Community and Leisure ,Premises related Expenditure,Repairs Alterations & Maintenance of Buildings,Estates premises costs - AMP,10/09/2015,163564,10200,John Stacey & Sons Ltd
Environmental & Regulatory,Regulatory Services,Housing and Environmental Health ,Supplies & Services,Grants and subscriptions,Capital Grants,24/09/2015,165036,13428.25,Prb Building Services
Planning & Development,Economic Development,Estates and Economic Development ,Third Party Payments,Other Establishments,Private Contractors,17/09/2015,164459,12405,Hughes And Salvidge Ltd
Environmental & Regulatory,Regulatory Services,Housing and Environmental Health ,Supplies & Services,Grants and subscriptions,Capital Grants,24/09/2015,165049,19275.25,Arun Projects Ltd
Central Services to the Public,Management & Support Services,Plan Pol & Transport,Supplies & Services,"Equipment, Furniture & Materials",Purchase Equip + Materials,10/09/2015,162746,18949.56,Colas Ltd
Cultural & Related,Recreation & Sport,Community and Leisure ,Premises related Expenditure,Repairs Alterations & Maintenance of Buildings,Estates premises costs - AMP,24/09/2015,163562,23250,Hags-Smp Ltd
Cultural & Related,Recreation & Sport,Community and Leisure ,Third Party Payments,Other Establishments,ALC Management Contract-TVL,24/09/2015,163978,33166.67,Valley Leisure Ltd
Planning & Development,Planning Policy,Plan Pol & Transport,Premises related Expenditure,Repairs Alterations & Maintenance of Buildings,General Repairs,24/09/2015,165042,34795.85,Caroway Building & Civil Engineering
Environmental & Regulatory,Regulatory Services,Estates and Economic Development ,Premises related Expenditure,Cleaning and domestic supplies,Contract Cleaning - Non Estates,03/09/2015,163058,13651.61,Friends Life Company Ltd
"Highways, Roads & Transport",Parking Services,Plan Pol & Transport,Supplies & Services,Services,Professional Fees,03/09/2015,163058,35104.14,Friends Life Company Ltd
Central Services to the Public,Management & Support Services,IT,Support Services,IT,IT Hardware costs,24/09/2015,162647,64750.2,European Electronique
